bitfinex-derivatives/quotes_ETHF0:USTF0_20250426
["timestamp","ask_amount","ask_price","bid_price","bid_amount"]
[1745649860565,1.10841,1803.8,1803.7,5.7652]
[1745649860991,2.74281,1803.8,1803.7,6.87367]
[1745649861176,7.5327,1804.1,1803.8,1.1084]
[1745649861410,1.10835,1803.9,1803.8,1.74]
[1745649861582,2.74271,1804.0,1803.8,2.84837]
[1745649861756,5.81312,1804.0,1803.8,2.84837]
[1745649862579,4.70481,1804.0,1803.9,1.10835]
[1745649862756,0.8584,1804.1,1804.0,1.10829]
[1745649863057,0.8584,1804.1,1804.0,1.91879]
[1745649863750,0.8584,1804.1,1804.0,0.8105]
[1745649863974,6.71644,1804.1,1803.9,8.0531]
[1745649864156,1.10829,1804.0,1803.9,6.9448]
[1745649864358,3.57769,1804.0,1803.9,6.9448]
[1745649864551,6.6481,1804.0,1803.9,6.9595]
[1745649870458,5.8581,1804.0,1803.9,8.06785]
[1745649870656,5.8581,1804.0,1803.9,6.9595]
[1745649873258,6.7056,1804.0,1803.9,3.7517]
[1745649874062,6.7056,1804.0,1803.6,1.9356]
[1745649874063,16.57588,1804.0,1803.6,3.709]
[1745649874370,1.10847,1803.7,1803.6,0.63859]
[1745649874569,1.10853,1803.6,1803.5,3.2078]
[1745649875365,2.83293,1803.6,1803.5,3.2078]
[1745649878266,2.83293,1803.6,1803.3,6.9168]
[1745649878267,1.10866,1803.4,1803.3,6.9168]
[1745649885361,1.91766,1803.4,1803.3,6.9168]
[1745649885963,1.91766,1803.4,1803.3,3.2078]
[1745649886165,1.10866,1803.4,1803.3,3.2078]
[1745649887271,1.10866,1803.4,1803.3,4.876]
[1745649888077,1.10866,1803.4,1803.3,1.6682]
[1745649889475,9.93,1803.7,1803.3,1.6682]
[1745649889775,9.93,1803.7,1803.4,1.97614]
[1745649889776,1.10857,1803.6,1803.4,1.97614]
[1745649889973,1.10857,1803.6,1803.5,1.6304]
[1745649889974,2.68667,1803.6,1803.5,1.6304]
[1745649890764,9.93,1803.7,1803.6,1.10853]
[1745649890989,4.7859,1803.9,1803.8,1.10841]
[1745649891369,3.2078,1803.9,1803.8,1.10841]
[1745649891570,0.8208,1804.0,1803.8,4.31621]
[1745649891775,1.92909,1804.0,1803.9,1.6304]
[1745649897878,1.10829,1804.0,1803.9,1.6304]
[1745649898980,1.96877,1804.1,1803.9,1.6304]
[1745649899381,1.96877,1804.1,1804.0,0.8453]
[1745649899982,1.96877,1804.1,1804.0,2.5039]
[1745649900288,0.8605,1804.1,1804.0,3.61219]
[1745649900490,0.8605,1804.1,1804.0,6.81999]
[1745649901349,1.10815,1804.3,1804.1,1.10823]
[1745649901356,3.55385,1804.3,1804.1,2.76683]
[1745649901584,3.55385,1804.3,1804.1,1.6586]
[1745649901892,3.55385,1804.3,1804.2,1.6586]
[1745649904396,1.10809,1804.4,1804.2,2.76676]
[1745649904589,1.10809,1804.4,1804.3,2.5959]
[1745649904984,2.72089,1804.4,1804.3,2.5959]
[1745649905499,2.72089,1804.4,1804.3,0.8628]
[1745649906392,2.72089,1804.4,1804.2,1.5981]
[1745649906393,1.1081,1804.3,1804.2,1.5981]
[1745649906578,2.7516,1804.3,1804.2,2.70626]
[1745649907288,6.7266,1804.5,1804.4,1.10804]
[1745649907589,9.47808,1804.5,1804.4,1.10804]
[1745649907888,2.5001,1804.5,1804.4,1.10804]
[1745649908086,2.5001,1804.5,1804.4,1.96414]
[1745649909181,3.60808,1804.5,1804.4,1.96414]
[1745649909888,2.5001,1804.5,1804.4,1.96414]
[1745649910289,3.60808,1804.5,1804.4,1.96414]
[1745649910489,3.60808,1804.5,1804.4,0.8561]
[1745649910686,2.5001,1804.5,1804.2,4.79515]
[1745649910890,1.1081,1804.3,1804.2,4.79516]
[1745649911382,2.8464,1804.3,1804.2,4.79516]
[1745649911988,1.7383,1804.3,1804.2,4.79516]
[1745649912188,1.96463,1804.5,1804.3,1.1081]
[1745649912387,3.70293,1804.5,1804.3,1.1081]
[1745649912592,1.10804,1804.4,1804.3,2.7923]
[1745649912892,2.84634,1804.4,1804.3,2.7923]
[1745649913089,2.84634,1804.4,1804.3,1.6842]
[1745649914181,2.84634,1804.4,1804.2,4.79512]
[1745649914387,2.7297,1804.3,1804.2,3.687]
[1745649914582,3.5457,1804.3,1804.2,3.687]
[1745649914877,1.10823,1804.1,1804.0,4.31607]
[1745649915081,2.72982,1804.2,1804.0,4.31606]
[1745649915283,2.4216,1804.1,1804.0,4.31606]
[1745649915483,2.4216,1804.1,1804.0,5.93956]
[1745649915727,1.10803,1804.5,1804.0,4.8313]
[1745649915887,2.4825,1804.4,1804.3,1.10809]
[1745649916687,2.4825,1804.4,1804.3,1.1081]
[1745649916896,3.59054,1804.4,1804.3,1.1081]
[1745649917290,2.4825,1804.4,1804.2,2.73164]
[1745649917495,1.6146,1804.3,1804.2,2.73164]
[1745649919292,2.7227,1804.3,1804.2,1.6235]
[1745649922493,2.7227,1804.3,1804.1,5.16747]
[1745649922695,1.7439,1804.2,1804.1,5.16747]
[1745649923195,1.7439,1804.2,1804.1,6.85137]
[1745649924292,1.7439,1804.2,1804.1,6.84817]
[1745649925399,2.85206,1804.2,1804.1,6.84817]
[1745649925698,1.7439,1804.2,1804.1,6.84817]
[1745649926403,1.10853,1803.6,1803.5,3.646]
[1745649927494,1.5965,1803.7,1803.5,4.5058]
[1745649927692,1.5965,1803.7,1803.6,1.10853]
[1745649927893,9.0778,1803.9,1803.7,1.10847]
[1745649928093,9.0778,1803.9,1803.8,2.76311]
[1745649928290,10.18615,1803.9,1803.8,2.5007]
[1745649928498,10.18615,1803.9,1803.8,3.60911]
[1745649928696,9.0778,1803.9,1803.8,3.60911]
[1745649929199,9.0778,1803.9,1803.8,2.5007]
[1745649929200,10.18615,1803.9,1803.8,2.5007]
[1745649929399,11.86565,1803.9,1803.8,2.5007]
[1745649930899,8.65785,1803.9,1803.8,2.5007]
[1745649931800,7.5495,1803.9,1803.5,3.2078]
[1745649932101,1.10847,1803.7,1803.6,3.646]
[1745649932602,1.624,1803.7,1803.6,4.75453]
[1745649932800,2.73247,1803.7,1803.6,5.2396]
[1745649933306,2.73247,1803.7,1803.6,3.646]
[1745649935505,1.10859,1803.5,1803.3,7.96249]
[1745649935705,0.8551,1803.4,1803.3,10.44279]
[1745649935893,1.96376,1803.4,1803.3,10.44279]
[1745649936106,3.63686,1803.4,1803.3,9.3341]
[1745649936301,3.63686,1803.4,1803.3,10.44282]
[1745649936498,2.7711,1803.8,1803.3,10.44282]
[1745649936499,1.10855,1803.6,1803.3,9.3341]
[1745649936699,1.10855,1803.6,1803.4,1.6193]
[1745649937204,2.78163,1803.7,1803.5,1.10859]
[1745649937598,1.10853,1803.6,1803.5,1.10859]
[1745649937806,1.6731,1803.6,1803.5,1.10859]
[1745649938006,2.79115,1803.8,1803.6,1.10853]
[1745649938210,1.10856,1803.6,1803.4,1.6193]
[1745649938398,4.8809,1803.7,1803.3,6.8538]
[1745649938603,3.54473,1803.5,1803.3,9.57079]
[1745649938798,3.54473,1803.5,1803.4,0.8438]
[1745649942607,2.4361,1803.5,1803.4,1.95246]
[1745649942807,2.4361,1803.5,1803.4,3.69296]
[1745649943115,3.54469,1803.5,1803.4,3.69296]
[1745649943613,3.54469,1803.5,1803.4,2.5843]
[1745649943843,2.4361,1803.5,1803.3,7.96247]
[1745649944109,1.6388,1803.4,1803.3,7.96247]
[1745649944309,1.6388,1803.4,1803.3,6.8538]
[1745649944310,2.74746,1803.4,1803.3,6.8538]
[1745649944512,3.57416,1803.4,1803.3,3.646]
[1745649946709,1.6388,1803.4,1803.3,3.646]
[1745649946907,0.8576,1803.5,1803.3,3.646]
[1745649947107,0.8576,1803.5,1803.4,1.10866]
[1745649947308,0.8576,1803.5,1803.4,2.85046]
[1745649947703,1.96619,1803.5,1803.4,1.7418]
[1745649948006,3.63249,1803.5,1803.4,1.7418]
[1745649948205,1.10866,1803.4,1803.3,4.7547]
[1745649948418,2.77496,1803.4,1803.3,6.3466]
[1745649948610,2.77496,1803.4,1803.3,3.646]
[1745649949320,3.62286,1803.4,1803.3,3.646]
[1745649951521,2.5142,1803.4,1803.3,4.75472]
[1745649951814,3.62286,1803.4,1803.3,3.646]
[1745649952717,2.5142,1803.4,1803.3,4.75472]
[1745649953016,3.62286,1803.4,1803.3,3.646]
[1745649954711,2.5142,1803.4,1803.3,4.75472]
[1745649954913,1.6663,1803.4,1803.3,6.38952]
[1745649955114,2.77496,1803.4,1803.3,5.2808]
[1745649957423,2.77496,1803.4,1803.3,3.646]
[1745649961825,1.6663,1803.4,1803.1,3.2078]
[1745649962027,1.10878,1803.2,1803.1,6.8568]
[1745649962343,1.10878,1803.2,1803.1,3.649]
[1745649962538,1.10884,1803.1,1803.0,0.8694]
[1745649962737,2.82564,1803.1,1803.0,0.8694]
[1745649963239,1.7168,1803.1,1803.0,0.8694]
[1745649963432,1.7168,1803.1,1803.0,1.9783]
[1745649964138,1.7168,1803.1,1803.0,3.7031]
[1745649965528,2.82564,1803.1,1803.0,3.7031]
[1745649966940,2.82564,1803.1,1803.0,2.5942]
[1745649967539,1.7168,1803.1,1802.8,4.75798]
[1745649967735,2.75383,1803.0,1802.9,0.8101]
[1745649968939,1.6449,1803.0,1802.9,1.91906]
[1745649969240,1.6449,1803.0,1802.9,3.60326]
[1745649969546,1.10887,1803.1,1802.9,6.81102]
[1745649969741,2.71727,1803.1,1803.0,1.6842]
[1745649971342,2.71727,1803.1,1803.0,2.7931]
[1745649971545,2.71727,1803.1,1803.0,1.6842]
[1745649971938,1.6084,1803.1,1803.0,2.7931]
[1745649972139,2.71724,1803.1,1803.0,1.6842]
[1745649972537,0.8439,1803.2,1803.0,2.7931]
[1745649972741,1.95271,1803.2,1803.0,2.7931]
[1745649973040,1.95271,1803.2,1803.1,1.6176]
[1745649973245,3.59951,1803.2,1803.1,1.6176]
[1745649973933,0.8439,1803.2,1803.1,2.72644]
[1745649974135,2.4907,1803.2,1803.1,2.72644]
[1745649975138,3.59948,1803.2,1803.1,1.6176]
[1745649976539,1.10888,1803.1,1802.9,1.91902]
[1745649976740,2.81378,1803.1,1803.0,1.1089]
[1745649977136,1.7049,1803.1,1803.0,1.1089]
[1745649977543,1.7049,1803.1,1803.0,2.7248]
[1745649977745,2.81374,1803.1,1803.0,1.6159]
[1745649978143,1.1089,1803.0,1802.9,0.8101]
[1745649978349,2.8149,1803.0,1802.9,0.8101]
[1745649978542,1.10896,1802.9,1802.8,3.649]
[1745649978741,3.67556,1802.9,1802.8,3.649]
[1745649978944,2.5666,1802.9,1802.8,5.62873]
[1745649979242,2.5666,1802.9,1802.8,7.24893]
[1745649979745,3.67556,1802.9,1802.8,6.1399]
[1745649980448,3.67556,1802.9,1802.8,4.5197]
[1745649981651,6.88336,1802.9,1802.8,3.649]
[1745649982241,3.67556,1802.9,1802.8,3.649]
[1745649982448,3.67556,1802.9,1802.8,5.2532]
[1745649982658,2.5666,1802.9,1802.8,6.36223]
[1745649982845,3.67556,1802.9,1802.8,5.2532]
[1745649983644,3.67556,1802.9,1802.8,3.649]
[1745649992143,1.10903,1802.8,1802.7,0.829]
[1745649992352,3.61463,1802.8,1802.7,0.829]
[1745649995055,2.82193,1802.8,1802.7,1.7068]
[1745649995358,1.10915,1802.6,1802.5,5.54387]
[1745649995559,1.10915,1802.6,1802.5,7.25067]
[1745649996657,1.6678,1802.7,1802.5,7.25067]
[1745649996957,2.77694,1802.7,1802.6,1.639]
[1745649998855,2.77694,1802.7,1802.4,4.31702]
[1745649998856,1.10915,1802.6,1802.4,4.31702]
[1745649999057,3.52366,1802.6,1802.4,4.31702]
[1745649999251,3.52366,1802.6,1802.5,2.4363]
[1745649999950,2.4145,1802.6,1802.5,3.54551]
[1745650000160,1.10913,1802.7,1802.5,3.54551]
[1745650000364,1.10913,1802.7,1802.6,1.5818]
[1745650003162,1.5842,1802.8,1802.6,2.69095]
[1745650003163,2.69327,1802.8,1802.6,2.69095]
[1745650003351,1.5842,1802.8,1802.6,2.69095]
[1745650003556,1.10909,1802.7,1802.6,2.69095]
[1745650003960,1.10909,1802.7,1802.6,1.5818]
[1745650004364,1.10909,1802.7,1802.6,2.69095]
[1745650004564,1.10909,1802.7,1802.6,1.5818]
[1745650012067,0.7996,1802.9,1802.8,1.10891]
[1745650012260,1.10881,1803.0,1802.8,1.10891]
[1745650012581,1.10881,1803.0,1802.9,1.7454]
[1745650012768,1.10881,1803.0,1802.9,2.5721]
[1745650016361,2.82301,1803.0,1802.9,2.5721]
[1745650017878,3.2078,1804.6,1803.3,3.2078]
[1745650018067,3.2078,1804.6,1804.5,1.10787]
[1745650018275,3.2078,1805.0,1804.7,1.10772]
[1745650018469,3.2078,1805.0,1804.7,1.10769]
[1745650018774,1.5978,1804.9,1804.7,1.10771]
[1745650018978,4.31528,1805.2,1804.8,2.74039]
[1745650019164,1.5978,1805.0,1804.9,1.6327]
[1745650019773,1.5978,1805.0,1804.9,2.74032]
[1745650019967,1.5978,1805.0,1804.9,1.6327]
[1745650020374,1.5978,1805.0,1804.9,2.74032]
[1745650021193,4.31524,1805.2,1804.9,2.74032]
[1745650021312,1.7092,1805.1,1804.9,2.74032]
[1745650021605,1.7092,1805.1,1805.0,1.10756]
[1745650021748,1.7092,1805.1,1805.0,2.69256]
[1745650021975,3.2078,1805.2,1805.1,1.1075]
[1745650022175,3.2078,1805.4,1805.2,1.1074]
[1745650022876,2.81646,1805.5,1805.2,4.3152]
[1745650023071,1.7092,1805.5,1805.2,4.3152]
[1745650023581,1.10734,1805.4,1805.2,4.7928]
[1745650023775,1.7092,1805.3,1805.2,4.7928]
[1745650023976,1.7092,1805.3,1805.2,3.2078]
[1745650024176,1.7092,1805.3,1805.1,4.69248]
[1745650024483,1.1073,1805.5,1805.1,5.2838]
[1745650024680,4.31502,1805.6,1805.3,1.10735]
[1745650024879,1.6172,1805.5,1805.3,1.10735]
[1745650025278,2.72446,1805.5,1805.2,6.01401]
[1745650025976,1.6172,1805.5,1805.2,6.01401]
[1745650027165,1.6172,1805.5,1805.3,1.10738]
[1745650027975,1.6172,1805.5,1805.3,1.10734]
[1745650029073,1.90664,1805.7,1805.5,1.10724]
[1745650029272,2.5013,1805.7,1805.5,1.10724]
[1745650029474,2.5013,1805.7,1805.5,2.68792]
[1745650029670,3.60845,1805.7,1805.5,2.68791]
[1745650029981,1.10704,1805.9,1805.7,1.10712]
[1745650030177,1.591,1805.8,1805.6,1.10714]
[1745650030572,1.591,1805.8,1805.7,2.81933]
[1745650030883,1.10703,1805.9,1805.7,6.02713]
[1745650031283,2.69798,1806.0,1805.8,1.10706]
[1745650031879,3.2078,1806.2,1806.1,1.10689]
[1745650032081,1.61948,1806.4,1806.2,1.10682]
[1745650032380,1.61948,1806.4,1806.3,3.2078]
[1745650032982,0.02848,1806.4,1806.3,4.31457]
[1745650033183,0.02848,1806.4,1806.3,3.2078]
[1745650033479,0.02848,1806.4,1806.3,4.31457]
[1745650034179,0.02848,1806.4,1806.3,7.89657]
[1745650034410,0.999,1806.9,1806.8,1.10646]
[1745650034574,1.6502,1807.1,1806.8,3.582]
[1745650034882,2.10538,1807.0,1806.8,6.7898]
[1745650035083,0.999,1807.0,1806.8,7.89623]
[1745650035285,0.999,1807.0,1806.8,6.7898]
[1745650035580,2.6492,1807.0,1806.9,1.1064]
[1745650035782,0.999,1807.0,1806.9,1.6273]
[1745650035985,2.10534,1807.0,1806.9,5.4163]
[1745650036178,0.999,1807.0,1806.9,6.5227]
[1745650036498,1.10614,1807.4,1807.1,1.10627]
[1745650036784,1.10621,1807.2,1807.1,3.2078]
[1745650037377,1.6847,1807.3,1807.1,3.2078]
[1745650037577,1.10621,1807.2,1807.1,3.2078]
[1745650037780,1.10628,1807.1,1807.0,1.681]
[1745650037984,1.6847,1807.1,1806.9,7.8281]
[1745650038290,1.10634,1807.0,1806.9,7.8281]
[1745650038585,2.791,1807.1,1806.9,7.8281]
[1745650038782,1.10634,1807.0,1806.9,7.8281]
[1745650038987,2.79104,1807.0,1806.9,7.8281]
[1745650039472,2.79104,1807.0,1806.9,6.9968]
[1745650040281,2.79104,1807.0,1806.7,3.2078]
[1745650040489,1.10652,1806.7,1806.6,3.788]
[1745650041933,1.10677,1806.3,1806.2,3.787]
[1745650041942,2.76676,1806.5,1806.1,3.2078]
[1745650042207,1.10695,1806.0,1805.9,3.787]
[1745650042300,1.10695,1806.0,1805.9,6.9948]
[1745650042880,2.73335,1806.0,1805.9,6.9948]
[1745650046784,5.87,1806.4,1805.9,12.74646801]
[1745650046989,1.10677,1806.3,1806.1,3.2078]
[1745650047281,2.83413,1806.4,1806.2,2.34891597]
[1745650047493,2.83413,1806.4,1806.3,0.75361597]
[1745650047688,2.83413,1806.4,1806.3,3.96141597]
[1745650050387,2.83413,1806.4,1806.3,3.96293183]
[1745650052889,2.83413,1806.4,1806.3,0.75513183]
[1745650053084,2.76694,1806.3,1805.8,1.6171]
[1745650053285,1.10701,1805.9,1805.8,1.6171]
[1745650054097,1.6166,1806.2,1805.8,1.6171]
[1745650054284,1.10701,1805.9,1805.8,1.6171]
[1745650054684,1.10698,1806.0,1805.8,1.6171]
[1745650055090,1.10695,1806.0,1805.9,3.2078]
[1745650055498,1.10695,1806.0,1805.9,4.8158]
[1745650055789,1.10693,1806.1,1805.9,10.92281]
[1745650056095,1.10683,1806.2,1806.0,1.9313]
[1745650056398,1.6619,1806.2,1806.1,3.2078]
[1745650056595,2.76875,1806.2,1806.1,3.2078]
[1745650059891,1.10689,1806.1,1806.0,4.6114]
[1745650060101,1.10695,1806.0,1805.9,3.2078]
[1745650060298,1.94435,1806.0,1805.9,3.2078]
[1745650065095,1.94435,1806.0,1805.9,3.94780991]
[1745650065696,1.94435,1806.0,1805.9,0.74000991]
[1745650066994,1.10695,1806.0,1805.9,0.74000991]
[1745650068095,1.10701,1805.9,1805.8,1.5727]
[1745650068298,1.10701,1805.9,1805.8,2.3138271]
[1745650069898,1.10701,1805.9,1805.8,2.31505006]
[1745650071709,1.10701,1805.9,1805.8,2.31609108]
[1745650072099,1.10701,1805.9,1805.8,2.31609702]
[1745650072902,1.10701,1805.9,1805.8,0.74339702]
[1745650073502,1.6725,1805.9,1805.8,0.74348192]
[1745650073703,2.77951,1805.9,1805.8,0.74348192]
[1745650074305,1.10719,1805.6,1805.5,4.8573]
[1745650074498,1.10719,1805.6,1805.5,5.60066153]
[1745650075414,1.10719,1805.6,1805.5,5.6006318]
[1745650076812,1.10719,1805.6,1805.5,3.9511318]
[1745650077008,1.10719,1805.6,1805.5,3.2078]
[1745650077321,1.10719,1805.6,1805.5,3.95068246]
[1745650077509,1.10719,1805.6,1805.5,5.60498246]
[1745650078610,2.77967,1805.7,1805.5,6.71221246]
[1745650078816,2.77967,1805.7,1805.6,0.74263671]
[1745650079018,2.77967,1805.7,1805.6,2.36193671]
[1745650080733,2.77967,1805.7,1805.6,2.36198543]
[1745650083524,2.77967,1805.7,1805.6,2.36210145]
[1745650087226,2.77967,1805.7,1805.6,2.36232962]
[1745650087425,2.77967,1805.7,1805.6,2.36253069]
[1745650089128,2.77967,1805.7,1805.6,2.36281228]
[1745650090426,1.9508,1805.8,1805.6,2.36281228]
[1745650090625,0.999,1806.3,1805.7,9.89263725]
[1745650090821,1.10689,1806.1,1806.0,3.2078]
[1745650091028,1.10685,1806.2,1806.0,3.95127705]
[1745650091336,1.10685,1806.2,1806.1,2.34867705]
[1745650091630,2.97071,1806.3,1806.1,3.45554705]
[1745650091830,2.97071,1806.3,1806.2,2.34867705]
[1745650092018,2.97071,1806.3,1806.2,3.14517705]
[1745650094325,2.97071,1806.3,1806.2,3.1439332]
[1745650094526,0.999,1806.3,1806.2,4.2507632]
[1745650094726,0.999,1806.3,1806.2,7.4585632]
[1745650095033,1.10662,1806.6,1806.4,1.10669]
[1745650095352,1.92394,1806.7,1806.5,1.8488732]
[1745650095639,1.10646,1806.8,1806.6,4.7650332]
[1745650095834,1.10646,1806.8,1806.7,2.3316332]
[1745650096231,1.10646,1806.8,1806.7,2.33077239]
[1745650097229,1.10646,1806.8,1806.7,1.5894]
[1745650103531,1.10652,1806.7,1806.6,4.0228]
[1745650103750,3.2078,1806.4,1804.9,7.39726032]
[1745650103942,1.10738,1805.3,1805.2,1.623]
[1745650104328,3.2078,1805.5,1805.0,0.8593]
[1745650104536,3.2078,1805.5,1805.1,1.623]
[1745650104935,1.10744,1805.2,1805.1,1.623]
[1745650106837,2.80784,1805.2,1805.1,1.623]
[1745650108834,2.8122374,1805.2,1805.1,1.623]
[1745650110646,1.1118374,1805.2,1805.1,1.623]
[1745650111535,2.7261374,1805.2,1805.1,1.623]
[1745650112540,0.0043974,1805.2,1805.1,1.623]
[1745650113139,0.0043974,1805.2,1805.1,10.9383]
[1745650113338,0.0043974,1805.2,1805.1,11.67630769]
[1745650115343,0.0043974,1805.2,1805.1,6.67630769]
[1745650116348,0.0043974,1805.2,1805.1,6.67635048]
[1745650117346,0.0043974,1805.2,1805.1,5.9383]
[1745650117546,0.0043974,1805.2,1805.1,11.67631378]
[1745650118144,1.10692,1806.1,1805.9,1.10699]
[1745650118343,1.10692,1806.1,1806.0,1.7179]
[1745650118638,1.10701,1805.9,1805.8,3.744]
[1745650118838,1.10701,1805.9,1805.8,6.56897]
[1745650119042,1.10701,1805.9,1805.8,5.4619]
[1745650122044,1.6185,1806.1,1805.8,5.4619]
[1745650122356,1.6185,1806.1,1805.9,1.6922]
[1745650122357,1.10695,1806.0,1805.9,1.6922]
[1745650122843,1.6185,1806.1,1805.9,1.6922]
[1745650123051,1.10695,1806.0,1805.9,1.6922]
[1745650123647,3.2078,1806.4,1805.9,1.6922]
[1745650123946,1.10672,1806.4,1806.2,1.1068]
[1745650124144,5.87,1806.6,1806.3,1.6922]
[1745650124145,1.6397,1806.5,1806.3,1.6922]
[1745650124353,1.90124,1806.7,1806.3,1.6922]
[1745650124551,3.62344,1806.7,1806.6,1.10658]
[1745650124746,3.62344,1806.7,1806.3,4.9]
[1745650124747,2.5169,1806.7,1806.5,4.8506]
[1745650124951,4.31415,1807.0,1806.8,1.10643]
[1745650125154,6.03635,1807.0,1806.8,1.10643]
[1745650125350,1.10641,1806.9,1806.7,1.10648]
[1745650125571,1.7222,1806.9,1806.7,2.74168]
[1745650125952,2.8286,1806.9,1806.7,1.6352]
[1745650126348,2.82862,1806.9,1806.7,1.6352]
[1745650126548,1.7222,1806.9,1806.7,2.74171]
[1745650126968,2.82862,1806.9,1806.7,2.74171]
[1745650127150,1.7222,1806.9,1806.8,1.10646]
[1745650127844,1.10641,1806.9,1806.7,2.74168]
[1745650128046,2.76251,1806.9,1806.7,6.53368]
[1745650129056,1.6561,1806.9,1806.7,6.53368]
[1745650129257,1.6561,1806.9,1806.8,1.10646]
[1745650129458,1.6561,1806.9,1806.7,6.53368]
[1745650129658,2.7625,1806.9,1806.7,6.53368]
[1745650129955,1.6561,1806.9,1806.7,6.53368]
[1745650130757,2.7625,1806.9,1806.7,6.53369]
[1745650131053,1.10646,1806.8,1806.7,5.4272]
[1745650131255,2.72546,1806.8,1806.7,5.4272]
[1745650131850,1.619,1806.8,1806.7,6.53372]
[1745650132666,4.31409,1807.1,1806.9,1.10638]
[1745650132864,3.2078,1807.1,1806.8,1.10644]
[1745650133068,2.72538,1807.0,1806.8,1.6229]
[1745650133264,1.619,1807.0,1806.9,1.1064]
[1745650133466,0.7947,1807.2,1806.8,4.8307]
[1745650133664,9.0778,1807.3,1806.8,7.59678]
[1745650133966,3.2078,1807.3,1807.1,1.10626]
[1745650134160,4.31399,1807.3,1807.1,3.791]
[1745650134355,3.2078,1807.3,1807.1,3.791]
[1745650134561,2.75161,1807.2,1807.1,3.791]
[1745650134761,3.57121,1807.2,1807.1,3.791]
[1745650136172,7.465,1807.2,1806.8,5.4776]
[1745650136373,1.1064,1806.9,1806.8,3.791]
[1745650137172,2.78398,1807.0,1806.8,3.791]
[1745650137375,1.1064,1806.9,1806.8,3.791]
[1745650137564,2.784,1806.9,1806.8,3.791]
[1745650137985,1.6776,1806.9,1806.8,4.89746]
[1745650138666,4.31412,1807.1,1806.8,4.89746]
[1745650138871,1.10634,1807.0,1806.9,1.6112]
[1745650139067,2.78394,1807.0,1806.9,1.6112]
[1745650140584,3.2078,1807.1,1806.9,1.6112]
[1745650140801,4.31409,1807.1,1806.9,2.71756]
[1745650141006,5.96749,1807.1,1806.9,2.71756]
[1745650141177,1.10634,1807.0,1806.9,1.6112]
[1745650141373,1.6534,1807.0,1806.9,1.6112]
[1745650141575,2.75974,1807.0,1806.9,1.6112]
[1745650142679,1.6534,1807.0,1806.9,1.6112]
[1745650142883,2.75974,1807.0,1806.9,1.6112]
[1745650143184,2.75978,1807.0,1806.8,4.89745]
[1745650144178,1.6534,1807.0,1806.8,3.791]
[1745650144375,1.93544,1806.9,1806.7,1.10652]
[1745650144683,4.31412,1807.1,1806.7,1.7298]
[1745650144879,1.7019,1807.0,1806.9,1.10636]
[1745650145283,3.2078,1807.1,1806.9,1.10636]
[1745650145478,6.01598,1807.1,1807.0,1.7298]
[1745650146278,1.7019,1807.1,1807.0,2.83614]
[1745650146480,0.8196,1807.2,1807.1,1.10628]
[1745650146983,2.558,1807.2,1807.1,1.10628]
[1745650147378,2.558,1807.2,1807.0,1.7298]
[1745650147578,1.10628,1807.1,1807.0,1.7298]
[1745650147775,1.7384,1807.1,1807.0,2.83614]
[1745650148383,2.84468,1807.1,1807.0,1.7298]
[1745650148783,1.7384,1807.1,1807.0,2.83614]
[1745650149184,1.7384,1807.1,1807.0,3.57676393]
[1745650149382,1.92581,1807.2,1807.0,3.57672393]
[1745650149683,1.92581,1807.2,1807.0,2.8361]
[1745650150187,1.92581,1807.2,1807.1,0.74141162]
[1745650150574,1.92581,1807.2,1807.1,0.74146448]
[1745650150785,1.10642,1806.9,1806.7,1.1065]
[1745650150983,1.1064,1806.9,1806.8,0.74173579]
[1745650151184,4.3142,1806.9,1806.8,0.74173579]
[1745650151387,1.10652,1806.7,1806.6,3.2078]
[1745650151687,1.10652,1806.7,1806.6,0.74263915]
[1745650151877,8.2078,1806.7,1806.3,1.6265]
[1745650152082,1.1067,1806.5,1806.4,0.74284439]
[1745650152280,4.3145,1806.5,1806.4,0.74284439]
[1745650152490,5.9872,1806.5,1806.4,0.74284439]
[1745650152684,1.10677,1806.3,1806.2,3.79]
[1745650152886,1.10677,1806.3,1806.2,4.53367064]
[1745650153287,4.8805,1806.5,1806.2,5.64049064]
[1745650153493,4.8805,1806.5,1806.3,0.74367064]
[1745650153789,5.87,1806.6,1806.4,0.74367064]
[1745650154084,5.87,1806.6,1806.5,0.74367064]
[1745650154286,7.5427,1806.6,1806.5,1.85031064]
[1745650154488,1.10649,1806.8,1806.6,1.10657]
[1745650154790,1.6727,1806.8,1806.7,0.74367064]
[1745650154988,4.0612,1806.9,1806.7,1.85019064]
[1745650155183,5.1676,1806.9,1806.8,0.74367064]
[1745650155790,1.10651,1806.8,1806.6,1.7376]
[1745650155992,1.10651,1806.8,1806.7,0.74368182]
[1745650156485,4.31431,1806.8,1806.7,0.74368182]
[1745650156687,1.10669,1806.5,1806.3,5.4047]
[1745650156887,1.10669,1806.5,1806.4,0.74391165]
[1745650157688,0.8403,1806.7,1806.4,0.74391165]
[1745650157895,1.10662,1806.6,1806.5,0.74391165]
[1745650158089,1.10662,1806.6,1806.5,2.43531165]
[1745650158594,1.10656,1806.7,1806.5,3.54195165]
[1745650158786,3.2078,1806.8,1806.6,2.43531165]
[1745650159089,1.10652,1806.7,1806.6,1.6914]
[1745650159490,3.2078,1806.8,1806.6,2.43377343]
[1745650159689,1.10642,1806.9,1806.7,1.84887343]
[1745650159894,1.10642,1806.9,1806.8,0.74237343]
[1745650160698,1.10642,1806.9,1806.8,2.43377343]
[1745650161097,1.10642,1806.9,1806.8,2.43359544]